[Event "Early-Titled-Tuesday-Blitz-April-16-2024"]
[Site "Chess.com"]
[Date "2024.04.16"]
[Round "2"]
[White "Mackster23"]
[Black "Abund"]
[Result "0-1"]
[WhiteElo "2561"]
[BlackElo "2818"]
[TimeControl "180+1"]
[EndTime "8:17:34 PDT"]
[Termination "Abund won on time"]

1. e4 {[%clk 0:02:57.8]} 1... c6 {[%clk 0:03:00.3]} 2. d4 {[%clk 0:02:57.6]}
2... d5 {[%clk 0:03:01.2]} 3. e5 {[%clk 0:02:58.4]} 3... c5 {[%clk 0:03:01.5]}
4. Nf3 {[%clk 0:02:59]} 4... cxd4 {[%clk 0:03:01.8]} 5. Nxd4 {[%clk 0:02:59.9]}
5... Nc6 {[%clk 0:03:02.5]} 6. Nxc6 {[%clk 0:03:00.6]} 6... bxc6 {[%clk
0:03:03.4]} 7. Bd3 {[%clk 0:03:00.9]} 7... e6 {[%clk 0:03:01.7]} 8. O-O {[%clk
0:03:00.9]} 8... a5 {[%clk 0:03:02.4]} 9. Qe2 {[%clk 0:02:59.5]} 9... Ne7 {[%clk
0:03:01]} 10. b3 {[%clk 0:02:51.3]} 10... Ng6 {[%clk 0:02:56.6]} 11. Nc3 {[%clk
0:02:50.2]} 11... Be7 {[%clk 0:02:48.4]} 12. Na4 {[%clk 0:02:49.1]} 12... O-O
{[%clk 0:02:47.4]} 13. c4 {[%clk 0:02:47.5]} 13... Ba6 {[%clk 0:02:42.7]} 14. f4
{[%clk 0:02:30.9]} 14... Rb8 {[%clk 0:02:09.6]} 15. Be3 {[%clk 0:02:30.1]} 15...
Ba3 {[%clk 0:02:05.8]} 16. Rad1 {[%clk 0:02:28.3]} 16... Qe7 {[%clk 0:02:05.5]}
17. Rf3 {[%clk 0:02:16.1]} 17... f5 {[%clk 0:01:45.6]} 18. exf6 {[%clk
0:02:04.6]} 18... Rxf6 {[%clk 0:01:45.7]} 19. Rdf1 {[%clk 0:01:48.2]} 19... Bd6
{[%clk 0:01:36.1]} 20. Bd2 {[%clk 0:01:20.3]} 20... Rbf8 {[%clk 0:01:28.1]} 21.
Rh3 {[%clk 0:00:58.4]} 21... h6 {[%clk 0:01:00.5]} 22. g3 {[%clk 0:00:38.1]}
22... e5 {[%clk 0:00:53.6]} 23. cxd5 {[%clk 0:00:27.6]} 23... Bc8 {[%clk
0:00:31.3]} 24. f5 {[%clk 0:00:19.3]} 24... cxd5 {[%clk 0:00:29.5]} 25. g4
{[%clk 0:00:15.3]} 25... e4 {[%clk 0:00:28.5]} 26. Bb5 {[%clk 0:00:14.9]} 26...
Ne5 {[%clk 0:00:28.6]} 27. Bc3 {[%clk 0:00:14]} 27... R6f7 {[%clk 0:00:27.5]}
28. Rg3 {[%clk 0:00:09.4]} 28... Qh4 {[%clk 0:00:26.2]} 29. Rg2 {[%clk
0:00:08.6]} 29... Kh8 {[%clk 0:00:21.9]} 30. Kh1 {[%clk 0:00:08.6]} 30... Bb7
{[%clk 0:00:21.4]} 31. Nb6 {[%clk 0:00:08.7]} 31... Nf3 {[%clk 0:00:18]} 32.
Rgf2 {[%clk 0:00:02.3]} 32... d4 {[%clk 0:00:17.8]} 33. Bb2 {[%clk 0:00:02.2]}
33... d3 {[%clk 0:00:15.4]} 34. Qe3 {[%clk 0:00:02.5]} 34... Bxh2 {[%clk
0:00:13.4]} 35. Kg2 {[%clk 0:00:02.5]} 35... Qg3+ {[%clk 0:00:13]} 36. Kh1
{[%clk 0:00:02.8]} 36... Qh3 {[%clk 0:00:12.4]} 37. Rxf3 {[%clk 0:00:02.2]}
37... exf3 {[%clk 0:00:11.4]} 38. Qg5 {[%clk 0:00:01.3]} 38... Bg3+ {[%clk
0:00:11.1]} 0-1

[Event "Early-Titled-Tuesday-Blitz-April-16-2024"]
[Site "Chess.com"]
[Date "2024.04.16"]
[Round "2"]
[White "biostatistician"]
[Black "CrazyMartian"]
[Result "1-0"]
[WhiteElo "2619"]
[BlackElo "2336"]
[TimeControl "180+1"]
[EndTime "8:17:35 PDT"]
[Termination "biostatistician won by resignation"]

1. Nh3 {[%clk 0:03:00]} 1... d5 {[%clk 0:02:58.6]} 2. d4 {[%clk 0:03:00.9]} 2...
Bxh3 {[%clk 0:02:58.2]} 3. gxh3 {[%clk 0:03:01.8]} 3... c5 {[%clk 0:02:55.2]} 4.
Bg2 {[%clk 0:03:00.7]} 4... e6 {[%clk 0:02:55.3]} 5. c4 {[%clk 0:02:58.6]} 5...
Nf6 {[%clk 0:02:50.6]} 6. cxd5 {[%clk 0:02:54.5]} 6... Nxd5 {[%clk 0:02:49.1]}
7. O-O {[%clk 0:02:53.3]} 7... Nc6 {[%clk 0:02:48.2]} 8. e4 {[%clk 0:02:53.2]}
8... Nf6 {[%clk 0:02:45.1]} 9. d5 {[%clk 0:02:53.4]} 9... Nb8 {[%clk 0:02:38.8]}
10. Nc3 {[%clk 0:02:51.4]} 10... Be7 {[%clk 0:02:34.3]} 11. dxe6 {[%clk
0:02:51.3]} 11... fxe6 {[%clk 0:02:31.2]} 12. e5 {[%clk 0:02:51.3]} 12... Nd5
{[%clk 0:02:07.5]} 13. Nxd5 {[%clk 0:02:51]} 13... exd5 {[%clk 0:02:07.1]} 14.
Bxd5 {[%clk 0:02:47.8]} 14... Nc6 {[%clk 0:02:06.8]} 15. Bf4 {[%clk 0:02:37.6]}
15... Nd4 {[%clk 0:01:55.1]} 16. Bxb7 {[%clk 0:02:31]} 16... O-O {[%clk
0:01:48.6]} 17. Bxa8 {[%clk 0:02:28.5]} 17... Qxa8 {[%clk 0:01:46.9]} 18. Bg3
{[%clk 0:02:16.8]} 18... Nf3+ {[%clk 0:01:21.7]} 19. Kh1 {[%clk 0:02:16.2]}
19... Kh8 {[%clk 0:01:07.5]} 20. Rc1 {[%clk 0:02:08.7]} 20... Nd2+ {[%clk
0:00:40.3]} 21. Kg1 {[%clk 0:01:53.4]} 21... Nf3+ {[%clk 0:00:31.8]} 22. Kh1
{[%clk 0:01:52.8]} 22... Nd2+ {[%clk 0:00:30.3]} 23. f3 {[%clk 0:01:53]} 23...
Nxf3 {[%clk 0:00:19.7]} 24. Qe2 {[%clk 0:01:21.8]} 24... Ne1+ {[%clk 0:00:12.7]}
25. Kg1 {[%clk 0:01:14.8]} 25... Nf3+ {[%clk 0:00:11.5]} 26. Rxf3 {[%clk
0:01:13.2]} 26... Rxf3 {[%clk 0:00:12.4]} 27. Rf1 {[%clk 0:01:04.9]} 27... Rxf1+
{[%clk 0:00:11.3]} 28. Qxf1 {[%clk 0:01:05.8]} 28... Qd5 {[%clk 0:00:11.1]} 29.
b3 {[%clk 0:00:56.4]} 29... h6 {[%clk 0:00:10]} 30. Qe2 {[%clk 0:00:52]} 30...
c4 {[%clk 0:00:09.9]} 31. bxc4 {[%clk 0:00:50.9]} 31... Bc5+ {[%clk 0:00:10.3]}
32. Bf2 {[%clk 0:00:51.3]} 32... Bxf2+ {[%clk 0:00:10.4]} 33. Kxf2 {[%clk
0:00:51.4]} 33... Qc5+ {[%clk 0:00:10.9]} 34. Kf3 {[%clk 0:00:50.6]} 34... Qc6+
{[%clk 0:00:11.1]} 35. Qe4 {[%clk 0:00:50.1]} 35... Qe6 {[%clk 0:00:11.1]} 36.
Kg3 {[%clk 0:00:45.5]} 36... a6 {[%clk 0:00:08.1]} 37. c5 {[%clk 0:00:40.4]}
37... a5 {[%clk 0:00:08.2]} 38. c6 {[%clk 0:00:40.4]} 38... Qxa2 {[%clk
0:00:06.6]} 39. e6 {[%clk 0:00:37.5]} 39... Qb3+ {[%clk 0:00:06.8]} 40. Kf4
{[%clk 0:00:35.8]} 40... Qb8+ {[%clk 0:00:06.2]} 41. Qe5 {[%clk 0:00:34.6]}
41... Qb4+ {[%clk 0:00:06.6]} 42. Kf5 {[%clk 0:00:32.4]} 42... Kh7 {[%clk
0:00:04.7]} 43. e7 {[%clk 0:00:31]} 43... g6+ {[%clk 0:00:05.3]} 44. Ke6 {[%clk
0:00:30.5]} 44... Qc4+ {[%clk 0:00:05.3]} 45. Kd7 {[%clk 0:00:29.2]} 45... Qe2
{[%clk 0:00:06]} 46. Qxe2 {[%clk 0:00:28.4]} 1-0

[Event "Early-Titled-Tuesday-Blitz-April-16-2024"]
[Site "Chess.com"]
[Date "2024.04.16"]
[Round "2"]
[White "szefru"]
[Black "SaiAgni_98"]
[Result "1-0"]
[WhiteElo "2289"]
[BlackElo "2494"]
[TimeControl "180+1"]
[EndTime "8:17:35 PDT"]
[Termination "szefru won on time"]

1. e4 {[%clk 0:02:58.9]} 1... e6 {[%clk 0:02:59.7]} 2. d4 {[%clk 0:02:47.8]}
2... d5 {[%clk 0:02:59.8]} 3. Nd2 {[%clk 0:02:39.9]} 3... Nf6 {[%clk 0:02:58.8]}
4. e5 {[%clk 0:02:39.7]} 4... Nfd7 {[%clk 0:02:58.5]} 5. f4 {[%clk 0:02:38.9]}
5... c5 {[%clk 0:02:57.5]} 6. c3 {[%clk 0:02:38.9]} 6... Nc6 {[%clk 0:02:57.5]}
7. Ndf3 {[%clk 0:02:36.3]} 7... Be7 {[%clk 0:02:50.8]} 8. Bd3 {[%clk 0:02:24.7]}
8... c4 {[%clk 0:02:30]} 9. Bc2 {[%clk 0:02:20.8]} 9... g6 {[%clk 0:02:29.4]}
10. Ne2 {[%clk 0:02:05.4]} 10... b5 {[%clk 0:02:29.2]} 11. O-O {[%clk
0:02:03.5]} 11... Qb6 {[%clk 0:02:17.3]} 12. g4 {[%clk 0:01:48.6]} 12... h5
{[%clk 0:02:15.4]} 13. gxh5 {[%clk 0:01:42.7]} 13... Rxh5 {[%clk 0:02:13.8]} 14.
Ng3 {[%clk 0:01:43.1]} 14... Rh8 {[%clk 0:02:09]} 15. Kg2 {[%clk 0:01:37.5]}
15... Nf8 {[%clk 0:02:05.4]} 16. Ng5 {[%clk 0:01:37.3]} 16... Bd7 {[%clk
0:01:40.8]} 17. Bd2 {[%clk 0:01:10.4]} 17... a5 {[%clk 0:01:17.5]} 18. b3 {[%clk
0:00:52.5]} 18... cxb3 {[%clk 0:01:06.6]} 19. axb3 {[%clk 0:00:51.6]} 19... b4
{[%clk 0:01:01.2]} 20. Ne2 {[%clk 0:00:21.9]} 20... Rh4 {[%clk 0:00:48.4]} 21.
cxb4 {[%clk 0:00:21.2]} 21... Bxb4 {[%clk 0:00:42.4]} 22. Bxb4 {[%clk
0:00:21.2]} 22... Nxb4 {[%clk 0:00:36.1]} 23. Bd3 {[%clk 0:00:21.3]} 23... Bb5
{[%clk 0:00:30]} 24. Bxb5+ {[%clk 0:00:20.8]} 24... Qxb5 {[%clk 0:00:30.5]} 25.
Nc3 {[%clk 0:00:21.4]} 25... Qd3 {[%clk 0:00:22]} 26. Qxd3 {[%clk 0:00:21.7]}
26... Nxd3 {[%clk 0:00:22.9]} 27. Kg3 {[%clk 0:00:22.2]} 27... Rh5 {[%clk
0:00:17.3]} 28. Nb5 {[%clk 0:00:22.5]} 28... Ke7 {[%clk 0:00:10.7]} 29. Rfd1
{[%clk 0:00:19]} 29... Nb4 {[%clk 0:00:09.7]} 30. Rdc1 {[%clk 0:00:19.5]} 30...
Nd7 {[%clk 0:00:06.3]} 31. Rc7 {[%clk 0:00:18.7]} 31... Na6 {[%clk 0:00:05.7]}
32. Rb7 {[%clk 0:00:17.5]} 32... Rah8 {[%clk 0:00:04.2]} 33. h3 {[%clk 0:00:17]}
33... Nb4 {[%clk 0:00:01.6]} 34. Rxa5 {[%clk 0:00:15.9]} 34... Nc6 {[%clk
0:00:01.1]} 35. Ra1 {[%clk 0:00:14.3]} 35... Nd8 {[%clk 0:00:01]} 36. Rba7
{[%clk 0:00:13.4]} 36... Nc6 {[%clk 0:00:00.8]} 37. Rc7 {[%clk 0:00:12.9]} 1-0

[Event "Early-Titled-Tuesday-Blitz-April-16-2024"]
[Site "Chess.com"]
[Date "2024.04.16"]
[Round "2"]
[White "Kotofeyca"]
[Black "JJDAREK"]
[Result "1/2-1/2"]
[WhiteElo "2516"]
[BlackElo "2312"]
[TimeControl "180+1"]
[EndTime "8:17:37 PDT"]
[Termination "Game drawn by stalemate"]

1. d4 {[%clk 0:03:00.9]} 1... d6 {[%clk 0:03:00.2]} 2. e4 {[%clk 0:03:00.1]}
2... g6 {[%clk 0:03:00.2]} 3. c4 {[%clk 0:02:59.5]} 3... e5 {[%clk 0:02:59.2]}
4. Ne2 {[%clk 0:02:53.5]} 4... Bg7 {[%clk 0:02:56.2]} 5. Nbc3 {[%clk 0:02:52.5]}
5... Nc6 {[%clk 0:02:44.6]} 6. Be3 {[%clk 0:02:52.1]} 6... Nh6 {[%clk
0:02:34.9]} 7. f3 {[%clk 0:02:44.3]} 7... f5 {[%clk 0:02:34.8]} 8. Qd2 {[%clk
0:02:35.9]} 8... Nf7 {[%clk 0:02:28.1]} 9. exf5 {[%clk 0:02:24]} 9... gxf5
{[%clk 0:02:23]} 10. dxe5 {[%clk 0:02:20.6]} 10... dxe5 {[%clk 0:02:22]} 11.
Qxd8+ {[%clk 0:02:20.1]} 11... Ncxd8 {[%clk 0:02:15.8]} 12. O-O-O {[%clk
0:01:28.1]} 12... c6 {[%clk 0:02:13.5]} 13. f4 {[%clk 0:01:26.4]} 13... Be6
{[%clk 0:01:57.6]} 14. b3 {[%clk 0:01:05.4]} 14... e4 {[%clk 0:01:45.5]} 15. h3
{[%clk 0:01:04.7]} 15... h5 {[%clk 0:01:42.7]} 16. Nd4 {[%clk 0:00:54.4]} 16...
h4 {[%clk 0:01:19.8]} 17. Be2 {[%clk 0:00:42.5]} 17... Ke7 {[%clk 0:01:13.4]}
18. Rd2 {[%clk 0:00:38.1]} 18... Rg8 {[%clk 0:01:03]} 19. Rhd1 {[%clk
0:00:36.6]} 19... Bxd4 {[%clk 0:00:59.2]} 20. Rxd4 {[%clk 0:00:26.2]} 20... Rxg2
{[%clk 0:00:57.9]} 21. Bh5 {[%clk 0:00:19.6]} 21... Rg3 {[%clk 0:00:53.3]} 22.
Bf2 {[%clk 0:00:17.4]} 22... Rxc3+ {[%clk 0:00:52.4]} 23. Kb2 {[%clk 0:00:16.8]}
23... Rxh3 {[%clk 0:00:48.6]} 24. R4d2 {[%clk 0:00:16.9]} 24... e3 {[%clk
0:00:47.8]} 25. Re1 {[%clk 0:00:14.3]} 25... exd2 {[%clk 0:00:36.3]} 26. Bc5+
{[%clk 0:00:11.1]} 26... Kd7 {[%clk 0:00:30.1]} 27. Rd1 {[%clk 0:00:11.3]} 27...
Rh2 {[%clk 0:00:27.1]} 28. Bg1 {[%clk 0:00:10.1]} 28... Rg2 {[%clk 0:00:25.9]}
29. Bf3 {[%clk 0:00:10.7]} 29... Rxg1 {[%clk 0:00:25.4]} 30. Rxg1 {[%clk
0:00:11.6]} 30... c5 {[%clk 0:00:18.9]} 31. Rd1 {[%clk 0:00:12.5]} 31... Nc6
{[%clk 0:00:19]} 32. Rxd2+ {[%clk 0:00:13.4]} 32... Kc7 {[%clk 0:00:19.5]} 33.
Rh2 {[%clk 0:00:12.8]} 33... Rh8 {[%clk 0:00:19.2]} 34. Kc3 {[%clk 0:00:12.4]}
34... Nd4 {[%clk 0:00:19.6]} 35. Bd1 {[%clk 0:00:13.3]} 35... Nd6 {[%clk
0:00:17.8]} 36. Kd3 {[%clk 0:00:14.2]} 36... Ne4 {[%clk 0:00:18.1]} 37. Ke3
{[%clk 0:00:14.9]} 37... Ng3 {[%clk 0:00:17.7]} 38. Kf2 {[%clk 0:00:13.7]} 38...
b6 {[%clk 0:00:17]} 39. a3 {[%clk 0:00:14.1]} 39... Kd6 {[%clk 0:00:17.2]} 40.
b4 {[%clk 0:00:14]} 40... cxb4 {[%clk 0:00:17]} 41. axb4 {[%clk 0:00:14.9]}
41... a5 {[%clk 0:00:17.4]} 42. bxa5 {[%clk 0:00:14.1]} 42... bxa5 {[%clk
0:00:18.3]} 43. Kg1 {[%clk 0:00:14.4]} 43... Kc5 {[%clk 0:00:18.1]} 44. Ra2
{[%clk 0:00:15.3]} 44... Bxc4 {[%clk 0:00:18]} 45. Kh2 {[%clk 0:00:16.2]} 45...
Bxa2 {[%clk 0:00:17.7]} 46. Bf3 {[%clk 0:00:14.6]} 46... Nxf3+ {[%clk
0:00:17.2]} 47. Kh3 {[%clk 0:00:15.5]} 47... Ne2 {[%clk 0:00:15.9]} 48. Kg2
{[%clk 0:00:15.4]} 48... Nxf4+ {[%clk 0:00:15.7]} 49. Kh1 {[%clk 0:00:15.3]}
49... Nd4 {[%clk 0:00:15.3]} 50. Kh2 {[%clk 0:00:15.2]} 50... h3 {[%clk
0:00:15.4]} 51. Kh1 {[%clk 0:00:15.5]} 51... h2 {[%clk 0:00:15.5]} 1/2-1/2

[Event "Early-Titled-Tuesday-Blitz-April-16-2024"]
[Site "Chess.com"]
[Date "2024.04.16"]
[Round "2"]
[White "RedFirePanda"]
[Black "Ati1517"]
[Result "1-0"]
[WhiteElo "2496"]
[BlackElo "2226"]
[TimeControl "180+1"]
[EndTime "8:17:37 PDT"]
[Termination "RedFirePanda won on time"]

1. d4 {[%clk 0:03:00.9]} 1... Nf6 {[%clk 0:02:59]} 2. Bf4 {[%clk 0:02:53]} 2...
g6 {[%clk 0:02:58.7]} 3. e3 {[%clk 0:02:52.1]} 3... Bg7 {[%clk 0:02:58.8]} 4.
Nf3 {[%clk 0:02:49]} 4... O-O {[%clk 0:02:58.8]} 5. h3 {[%clk 0:02:49.2]} 5...
d6 {[%clk 0:02:56.3]} 6. Nbd2 {[%clk 0:02:44.9]} 6... Nbd7 {[%clk 0:02:54.4]} 7.
Be2 {[%clk 0:02:44.3]} 7... Re8 {[%clk 0:02:54.4]} 8. c3 {[%clk 0:02:40.5]} 8...
c5 {[%clk 0:02:54.4]} 9. O-O {[%clk 0:02:40]} 9... e5 {[%clk 0:02:51.4]} 10.
dxe5 {[%clk 0:02:40.9]} 10... dxe5 {[%clk 0:02:49.4]} 11. Bh2 {[%clk 0:02:41.8]}
11... e4 {[%clk 0:02:49.1]} 12. Ne1 {[%clk 0:02:38.5]} 12... b6 {[%clk
0:02:47.4]} 13. Nc4 {[%clk 0:02:28.8]} 13... Ba6 {[%clk 0:02:42.4]} 14. Qa4
{[%clk 0:02:16.1]} 14... Bxc4 {[%clk 0:02:37.3]} 15. Bxc4 {[%clk 0:02:17]} 15...
a6 {[%clk 0:02:35.5]} 16. Bxa6 {[%clk 0:02:03]} 16... Ra7 {[%clk 0:01:40.3]} 17.
Qc4 {[%clk 0:01:54]} 17... Nb8 {[%clk 0:01:34.3]} 18. Bb5 {[%clk 0:01:49]} 18...
Ree7 {[%clk 0:01:33.8]} 19. Nc2 {[%clk 0:01:43.2]} 19... Nfd7 {[%clk 0:01:27.1]}
20. Rfd1 {[%clk 0:01:36.4]} 20... Qc8 {[%clk 0:01:26.3]} 21. Rd2 {[%clk
0:01:12.4]} 21... Ne5 {[%clk 0:01:24.2]} 22. Bxe5 {[%clk 0:01:10]} 22... Rxe5
{[%clk 0:01:21.3]} 23. Rad1 {[%clk 0:01:09.1]} 23... Bf6 {[%clk 0:01:20.7]} 24.
Rd6 {[%clk 0:00:58.9]} 24... Kg7 {[%clk 0:01:13.6]} 25. Rxb6 {[%clk 0:00:46.4]}
25... Qc7 {[%clk 0:01:05.2]} 26. Rbd6 {[%clk 0:00:43.3]} 26... Rb7 {[%clk
0:00:54.7]} 27. a4 {[%clk 0:00:35.9]} 27... Be7 {[%clk 0:00:46.2]} 28. R6d5
{[%clk 0:00:32.8]} 28... Re6 {[%clk 0:00:44.9]} 29. Na1 {[%clk 0:00:20.3]} 29...
Nc6 {[%clk 0:00:43.7]} 30. Nb3 {[%clk 0:00:13.9]} 30... Ne5 {[%clk 0:00:23.6]}
31. Qxe4 {[%clk 0:00:14.1]} 31... f5 {[%clk 0:00:23.8]} 32. Qf4 {[%clk
0:00:14.2]} 32... g5 {[%clk 0:00:22.3]} 33. Qxf5 {[%clk 0:00:10.4]} 33... Rbb6
{[%clk 0:00:18.2]} 34. Nd2 {[%clk 0:00:06.2]} 34... Rbd6 {[%clk 0:00:12.8]} 35.
Ne4 {[%clk 0:00:06.3]} 35... Rxd5 {[%clk 0:00:12]} 36. Rxd5 {[%clk 0:00:07]}
36... Nc6 {[%clk 0:00:02.3]} 37. Qxe6 {[%clk 0:00:06.4]} 37... Nd8 {[%clk
0:00:02]} 38. Qd7 {[%clk 0:00:05.5]} 38... Qxd7 {[%clk 0:00:01.4]} 39. Rxd7
{[%clk 0:00:06.4]} 39... Kf8 {[%clk 0:00:01.3]} 40. c4 {[%clk 0:00:04.4]} 1-0

[Event "Early-Titled-Tuesday-Blitz-April-16-2024"]
[Site "Chess.com"]
[Date "2024.04.16"]
[Round "2"]
[White "MaxLeto"]
[Black "Kildepiotr"]
[Result "1-0"]
[WhiteElo "2419"]
[BlackElo "2693"]
[TimeControl "180+1"]
[EndTime "8:17:39 PDT"]
[Termination "MaxLeto won by resignation"]

1. g4 {[%clk 0:03:00.9]} 1... d5 {[%clk 0:00:44]} 2. Bg2 {[%clk 0:02:58]} 2...
c6 {[%clk 0:00:44.5]} 3. h3 {[%clk 0:02:58.4]} 3... h5 {[%clk 0:00:44.6]} 4. g5
{[%clk 0:02:58.4]} 4... h4 {[%clk 0:00:45.1]} 5. d4 {[%clk 0:02:59.3]} 5... Bf5
{[%clk 0:00:44.3]} 6. c4 {[%clk 0:03:00.2]} 6... e6 {[%clk 0:00:44.4]} 7. Nc3
{[%clk 0:03:00.9]} 7... Nd7 {[%clk 0:00:44.2]} 8. f3 {[%clk 0:02:58.8]} 8... Bd6
{[%clk 0:00:42.3]} 9. e4 {[%clk 0:02:58.5]} 9... Bg3+ {[%clk 0:00:42.3]} 10. Kf1
{[%clk 0:02:59.1]} 10... dxe4 {[%clk 0:00:42.2]} 11. fxe4 {[%clk 0:03:00]} 11...
Bg6 {[%clk 0:00:42.5]} 12. Nge2 {[%clk 0:03:00.9]} 12... Bc7 {[%clk 0:00:41.6]}
13. Be3 {[%clk 0:02:57.3]} 13... Ne7 {[%clk 0:00:41.6]} 14. Qd2 {[%clk
0:02:50.8]} 14... c5 {[%clk 0:00:41.7]} 15. dxc5 {[%clk 0:02:41.9]} 15... Ne5
{[%clk 0:00:42]} 16. b3 {[%clk 0:02:30.4]} 16... Qxd2 {[%clk 0:00:40.9]} 17.
Bxd2 {[%clk 0:02:31.3]} 17... O-O-O {[%clk 0:00:40.8]} 18. Rd1 {[%clk
0:02:29.5]} 18... N7c6 {[%clk 0:00:36.4]} 19. Nf4 {[%clk 0:01:23.6]} 19... a6
{[%clk 0:00:32.7]} 20. Kf2 {[%clk 0:01:22.4]} 20... Bh5 {[%clk 0:00:25]} 21.
Nce2 {[%clk 0:01:10.2]} 21... Bxe2 {[%clk 0:00:22.9]} 22. Kxe2 {[%clk
0:01:07.2]} 22... Nd4+ {[%clk 0:00:23]} 23. Kf2 {[%clk 0:01:07.9]} 23... Nd7
{[%clk 0:00:20.2]} 24. Be3 {[%clk 0:00:49.7]} 24... Nc2 {[%clk 0:00:19.5]} 25.
Nd3 {[%clk 0:00:37.8]} 25... Nxe3 {[%clk 0:00:18.8]} 26. Kxe3 {[%clk 0:00:38.7]}
26... Rh5 {[%clk 0:00:14.2]} 27. g6 {[%clk 0:00:37.6]} 27... fxg6 {[%clk
0:00:13.9]} 28. Bf3 {[%clk 0:00:38.3]} 28... Rg5 {[%clk 0:00:13.7]} 29. Bg4
{[%clk 0:00:38.8]} 29... Re8 {[%clk 0:00:12.9]} 30. b4 {[%clk 0:00:36.4]} 30...
a5 {[%clk 0:00:11]} 31. a3 {[%clk 0:00:36.3]} 31... axb4 {[%clk 0:00:10.9]} 32.
axb4 {[%clk 0:00:37.2]} 32... Nf6 {[%clk 0:00:09.9]} 33. Rhg1 {[%clk 0:00:21.4]}
33... Nxg4+ {[%clk 0:00:09.9]} 34. Rxg4 {[%clk 0:00:17.2]} 34... Rxg4 {[%clk
0:00:10.5]} 35. hxg4 {[%clk 0:00:18.1]} 35... h3 {[%clk 0:00:11.2]} 36. Rh1
{[%clk 0:00:18.7]} 36... h2 {[%clk 0:00:11]} 37. e5 {[%clk 0:00:19.4]} 37... Rh8
{[%clk 0:00:11.3]} 38. Kf4 {[%clk 0:00:19.8]} 38... Kd7 {[%clk 0:00:11.4]} 39.
Kg3 {[%clk 0:00:19.5]} 39... g5 {[%clk 0:00:10.1]} 40. Rxh2 {[%clk 0:00:19.7]}
40... Ra8 {[%clk 0:00:09.7]} 41. Kf3 {[%clk 0:00:17.8]} 41... Ra3 {[%clk
0:00:09.1]} 42. Ke4 {[%clk 0:00:18.3]} 42... Ke7 {[%clk 0:00:08.8]} 43. Rh5
{[%clk 0:00:12.4]} 43... Ra1 {[%clk 0:00:07.7]} 44. Rxg5 {[%clk 0:00:12.7]}
44... Kf7 {[%clk 0:00:08.4]} 45. Rh5 {[%clk 0:00:12.7]} 45... Rd1 {[%clk
0:00:08.4]} 46. Rh8 {[%clk 0:00:12.3]} 46... Rd2 {[%clk 0:00:08.3]} 47. Rc8
{[%clk 0:00:12.5]} 1-0

[Event "Early-Titled-Tuesday-Blitz-April-16-2024"]
[Site "Chess.com"]
[Date "2024.04.16"]
[Round "2"]
[White "TheoSlade"]
[Black "dcremisi"]
[Result "1-0"]
[WhiteElo "2375"]
[BlackElo "2664"]
[TimeControl "180+1"]
[EndTime "8:17:42 PDT"]
[Termination "TheoSlade won on time"]

1. d4 {[%clk 0:03:00.9]} 1... d5 {[%clk 0:02:32.3]} 2. c4 {[%clk 0:03:01.2]}
2... e6 {[%clk 0:02:30.2]} 3. Nf3 {[%clk 0:03:01.6]} 3... c6 {[%clk 0:02:30.3]}
4. e3 {[%clk 0:03:01.4]} 4... Nf6 {[%clk 0:02:30.5]} 5. Nc3 {[%clk 0:03:01.7]}
5... Nbd7 {[%clk 0:02:30.3]} 6. Qc2 {[%clk 0:03:02.4]} 6... Bd6 {[%clk
0:02:30.3]} 7. Be2 {[%clk 0:03:03]} 7... O-O {[%clk 0:02:30.3]} 8. O-O {[%clk
0:03:03.6]} 8... Qe7 {[%clk 0:02:30.5]} 9. b3 {[%clk 0:03:02.3]} 9... b6 {[%clk
0:02:30.2]} 10. Bb2 {[%clk 0:03:01.9]} 10... Bb7 {[%clk 0:02:30.7]} 11. Rad1
{[%clk 0:02:59.5]} 11... dxc4 {[%clk 0:02:29.9]} 12. bxc4 {[%clk 0:02:59.3]}
12... e5 {[%clk 0:02:30.4]} 13. Rfe1 {[%clk 0:02:41.7]} 13... Rac8 {[%clk
0:02:30.1]} 14. Nh4 {[%clk 0:02:39]} 14... g6 {[%clk 0:02:25.9]} 15. dxe5 {[%clk
0:02:32.1]} 15... Nxe5 {[%clk 0:02:25.8]} 16. f4 {[%clk 0:01:58.5]} 16... Ned7
{[%clk 0:02:10.8]} 17. Kh1 {[%clk 0:01:28.6]} 17... Nc5 {[%clk 0:02:06.6]} 18.
Bd3 {[%clk 0:01:20.8]} 18... Nxd3 {[%clk 0:02:01.7]} 19. Rxd3 {[%clk 0:01:21.5]}
19... c5 {[%clk 0:01:59.8]} 20. Nd5 {[%clk 0:01:11.7]} 20... Nxd5 {[%clk
0:01:59.5]} 21. cxd5 {[%clk 0:01:12.6]} 21... c4 {[%clk 0:01:57.9]} 22. Qc3
{[%clk 0:01:07.9]} 22... f6 {[%clk 0:01:56]} 23. Rd4 {[%clk 0:01:03.7]} 23...
Bb4 {[%clk 0:01:56]} 24. Qc1 {[%clk 0:00:51.1]} 24... Bxe1 {[%clk 0:01:55.3]}
25. Qxe1 {[%clk 0:00:52]} 25... c3 {[%clk 0:01:55.4]} 26. Bxc3 {[%clk
0:00:47.6]} 26... Rfd8 {[%clk 0:01:53.9]} 27. d6 {[%clk 0:00:42.1]} 27... Rxd6
{[%clk 0:01:52.7]} 28. Bb4 {[%clk 0:00:42.2]} 28... Rcd8 {[%clk 0:01:40.1]} 29.
Qc3 {[%clk 0:00:35]} 29... Rxd4 {[%clk 0:01:36.2]} 30. exd4 {[%clk 0:00:30.8]}
30... Qe4 {[%clk 0:01:33.8]} 31. h3 {[%clk 0:00:18.4]} 31... Qxd4 {[%clk
0:01:26.7]} 32. Qc7 {[%clk 0:00:13.2]} 32... Qd7 {[%clk 0:01:11.4]} 33. Qc4+
{[%clk 0:00:11.4]} 33... Bd5 {[%clk 0:01:09.4]} 34. Qc3 {[%clk 0:00:09.5]} 34...
Qe6 {[%clk 0:00:43.5]} 35. Ba3 {[%clk 0:00:07.7]} 35... Rc8 {[%clk 0:00:42.5]}
36. Qb4 {[%clk 0:00:04.8]} 36... Qxh3+ {[%clk 0:00:28.9]} 37. Kg1 {[%clk
0:00:05]} 37... Qg3 {[%clk 0:00:14.7]} 38. Qe7 {[%clk 0:00:02.8]} 38... Qxh4
{[%clk 0:00:08.2]} 39. Bb2 {[%clk 0:00:03.5]} 39... Qe1+ {[%clk 0:00:02.1]} 40.
Kh2 {[%clk 0:00:03.6]} 40... Qh4+ {[%clk 0:00:01.6]} 41. Kg1 {[%clk 0:00:04.1]}
41... Rc1+ {[%clk 0:00:02.3]} 42. Bxc1 {[%clk 0:00:04]} 42... Qe1+ {[%clk
0:00:02.3]} 43. Qxe1 {[%clk 0:00:03.7]} 1-0